bitfinex/quotes_BTCUSD_20220226
["timestamp","ask_amount","ask_price","bid_price","bid_amount"]
[1645874110739,0.219873,38930.0,38929.0,6.363e-05]
[1645874110934,0.2224407,38930.0,38929.0,6.363e-05]
[1645874111335,0.219873,38930.0,38929.0,6.363e-05]
[1645874111537,0.025,38933.0,38929.0,6.363e-05]
[1645874111735,0.2499,38930.0,38929.0,6.363e-05]
[1645874112239,0.314173,38930.0,38929.0,6.363e-05]
[1645874112634,0.2499,38930.0,38929.0,6.363e-05]
[1645874112834,0.3499,38930.0,38929.0,6.363e-05]
[1645874114489,0.2499,38930.0,38929.0,0.22240267]
[1645874114892,0.003,38935.0,38929.0,1.12133471]
[1645874115089,0.003,38935.0,38932.0,0.1]
[1645874115287,0.003,38935.0,38933.0,0.3]
[1645874115689,0.0951,38940.0,38933.0,0.3]
[1645874115988,0.0951,38940.0,38933.0,0.31026]
[1645874116188,0.0951,38940.0,38933.0,0.380819]
[1645874116391,0.0951,38940.0,38933.0,0.375819]
[1645874116687,0.0951,38940.0,38935.0,0.0003039]
[1645874117188,0.0951,38940.0,38933.0,0.3065639]
[1645874117590,0.0951,38940.0,38933.0,0.3061116]
[1645874117833,0.0951,38940.0,38932.0,0.01026]
[1645874118034,0.0951,38940.0,38932.0,0.31026]
[1645874118238,0.0951,38940.0,38932.0,0.01026]
[1645874118434,0.0951,38940.0,38931.0,0.01026]
[1645874119637,0.17105824,38939.0,38931.0,0.01026]
[1645874119838,0.17105824,38939.0,38935.0,0.22133904]
[1645874119839,0.0951,38937.0,38935.0,0.22133904]
[1645874120437,0.0961,38937.0,38935.0,0.22133904]
[1645874120637,0.0961,38937.0,38936.0,6.746e-05]
[1645874121240,0.346,38937.0,38936.0,6.746e-05]
[1645874121440,0.1461,38937.0,38936.0,6.746e-05]
[1645874121682,0.1451,38937.0,38936.0,6.746e-05]
[1645874122482,0.395,38937.0,38936.0,6.746e-05]
[1645874122883,0.1451,38937.0,38936.0,6.746e-05]
[1645874124185,0.395,38937.0,38936.0,6.746e-05]
[1645874124585,0.1461,38937.0,38936.0,6.746e-05]
[1645874124986,0.1461,38937.0,38936.0,0.2214065]
[1645874125335,0.1461,38937.0,38936.0,0.44274554]
[1645874125527,0.1461,38937.0,38936.0,0.44267808]
[1645874125726,0.395,38937.0,38936.0,0.44267808]
[1645874126126,0.595,38937.0,38936.0,0.44267808]
[1645874126929,0.3451,38937.0,38936.0,0.44267808]
[1645874128028,0.645,38937.0,38936.0,0.44267808]
[1645874128432,0.646,38937.0,38936.0,0.44267808]
[1645874129687,0.846,38937.0,38936.0,0.44267808]
[1645874129884,0.845,38937.0,38936.0,0.44267808]
[1645874130286,0.845,38937.0,38936.0,0.44066267]
[1645874130688,0.845,38937.0,38936.0,0.22133904]
[1645874130984,0.945,38937.0,38936.0,0.44066267]
[1645874131987,1.40006,38936.0,38923.0,0.00200469]
[1645874132194,1.40006,38936.0,38922.0,0.05]
[1645874132195,0.3,38924.0,38922.0,0.05]
[1645874132392,0.3,38924.0,38911.0,0.01110788]
[1645874132393,0.06712999,38918.0,38911.0,0.01110788]
[1645874132593,0.3,38912.0,38911.0,0.00910788]
[1645874132836,0.175594,38911.0,38909.0,0.00337037]
[1645874133040,1.3014,38910.0,38907.0,0.00214063]
[1645874133236,0.6,38908.0,38904.0,0.05884117]
[1645874133441,0.064321,38906.0,38904.0,0.00584117]
[1645874133648,0.064321,38906.0,38900.0,0.00210084]
[1645874133649,0.95,38903.0,38900.0,0.00210084]
[1645874133841,1.3,38901.0,38896.0,0.0041]
[1645874134037,0.6514,38900.0,38896.0,0.0041]
[1645874134239,0.9364512,38899.0,38896.0,0.0041]
[1645874134438,0.0514,38898.0,38896.0,0.0041]
[1645874134636,0.0514,38898.0,38895.0,0.0022]
[1645874134837,0.0514,38898.0,38896.0,0.00027037]
[1645874135037,0.0514,38898.0,38893.0,0.00167037]
[1645874135237,0.0514,38898.0,38896.0,0.001]
[1645874135939,0.26,38901.0,38898.0,0.2056]
[1645874136139,0.26,38901.0,38900.0,0.477593]
[1645874136338,0.26,38901.0,38900.0,0.377593]
[1645874136598,0.1998,38909.0,38902.0,0.403183]
[1645874136786,0.1998,38909.0,38901.0,1.40837311]
[1645874136787,0.31845168,38918.0,38913.0,0.21383016]
[1645874136988,0.18722999,38918.0,38913.0,0.21383016]
[1645874137188,0.18722999,38918.0,38905.0,0.02559]
[1645874137385,0.3,38917.0,38905.0,0.02559]
[1645874137585,0.32559,38916.0,38902.0,0.3664474]
[1645874137787,0.128608,38914.0,38902.0,0.3664474]
[1645874137986,0.153608,38914.0,38902.0,0.3164474]
[1645874138192,0.203608,38914.0,38908.0,0.16865991]
[1645874138988,0.064304,38913.0,38908.0,0.16634707]
[1645874139487,0.064304,38913.0,38903.0,0.3]
[1645874139689,0.064304,38913.0,38903.0,0.01028]
[1645874139889,0.064304,38913.0,38903.0,0.3]
[1645874140530,0.064304,38913.0,38906.0,0.17518942]
[1645874141526,0.089304,38913.0,38906.0,0.17518942]
[1645874143026,0.089304,38913.0,38902.0,0.0995474]
[1645874143426,0.089304,38913.0,38903.0,0.3]
[1645874143826,0.089304,38913.0,38902.0,0.0995474]
[1645874144079,0.089304,38913.0,38904.0,0.19273073]
[1645874144682,0.0004526,38912.0,38904.0,0.19273073]
[1645874144883,0.0004526,38912.0,38899.0,0.00104632]
[1645874145081,0.064315,38909.0,38899.0,0.00104632]
[1645874145282,0.089315,38909.0,38899.0,0.00104632]
[1645874145481,0.089315,38909.0,38898.0,0.4542]
[1645874145482,0.139315,38909.0,38898.0,0.4542]
[1645874145681,0.139315,38909.0,38907.0,6.949e-05]
[1645874145886,0.189315,38909.0,38907.0,6.949e-05]
[1645874146082,0.439215,38909.0,38907.0,6.949e-05]
[1645874146482,0.441215,38909.0,38907.0,6.949e-05]
[1645874146882,0.3,38908.0,38907.0,6.949e-05]
[1645874147284,0.0004526,38908.0,38907.0,6.949e-05]
[1645874147482,0.064319,38904.0,38899.0,0.00104633]
[1645874147931,0.064319,38904.0,38898.0,0.1542]
[1645874148732,0.066319,38904.0,38898.0,0.1542]
[1645874149131,0.366319,38904.0,38898.0,0.1542]
[1645874149532,0.2499,38899.0,38898.0,0.1542]
[1645874149731,0.31423,38899.0,38898.0,0.1542]
[1645874149934,0.06433,38899.0,38898.0,0.1542]
[1645874150131,0.11433,38899.0,38898.0,0.1542]
[1645874150532,0.06533,38899.0,38898.0,0.1542]
[1645874151684,0.2499,38904.0,38900.0,0.44890673]
[1645874151885,0.3499,38904.0,38900.0,0.44890673]
[1645874152284,0.4,38904.0,38900.0,0.44890673]
[1645874152484,0.0004526,38901.0,38900.0,0.44890673]
[1645874152685,0.2499,38902.0,38900.0,0.44890673]
[1645874153086,0.2999,38902.0,38900.0,0.44890673]
[1645874153286,0.3499,38902.0,38900.0,0.44890673]
[1645874154086,0.6499,38902.0,38900.0,0.44890673]
[1645874154789,0.0004526,38901.0,38900.0,0.44890673]
[1645874155442,0.0518526,38901.0,38900.0,0.44890673]
[1645874155637,0.55,38900.0,38896.0,0.001]
[1645874155937,0.0647936,38898.0,38896.0,0.001]
[1645874156137,0.0514,38897.0,38896.0,0.001]
[1645874156738,0.3013,38897.0,38896.0,0.001]
[1645874157940,0.29840192,38897.0,38896.0,0.001]
[1645874158140,1.20709192,38897.0,38896.0,0.001]
[1645874158339,0.55521361,38897.0,38896.0,0.001]
[1645874158542,0.67399192,38897.0,38896.0,0.001]
[1645874158739,0.67499192,38897.0,38896.0,0.001]
[1645874158945,0.6,38896.0,38891.0,0.00205366]
[1645874159181,0.0260426,38894.0,38891.0,0.00205366]
[1645874159380,0.115746,38893.0,38891.0,0.00205366]
[1645874159581,0.2499,38892.0,38891.0,0.00205366]
[1645874159781,0.3013,38892.0,38891.0,0.00205366]
[1645874160182,0.6013,38892.0,38891.0,0.00205366]
[1645874160383,0.85,38891.0,38890.0,0.0021]
[1645874160583,0.85,38891.0,38890.0,0.0011]
[1645874160584,1.75569786,38891.0,38890.0,0.0011]
[1645874160783,0.75,38890.0,38883.0,2.96373468]
[1645874160985,1.224447,38889.0,38883.0,2.96373468]
[1645874161184,0.02559,38888.0,38883.0,2.96373468]
[1645874161385,0.0514,38887.0,38883.0,2.96373468]
[1645874161982,0.0514,38887.0,38883.0,2.96317116]
[1645874162182,0.0514,38887.0,38883.0,2.94817116]
[1645874162382,0.06287489,38887.0,38883.0,2.94817116]
[1645874162581,0.0534,38887.0,38883.0,2.94817116]
[1645874162831,0.2499,38884.0,38883.0,2.94817116]
[1645874163026,0.4013,38884.0,38883.0,2.94817116]
[1645874163227,0.5013,38884.0,38883.0,2.94817116]
[1645874163428,0.53814248,38884.0,38883.0,2.94817116]
[1645874163629,0.51255248,38884.0,38883.0,2.94817116]
[1645874163829,0.5013,38884.0,38883.0,2.94817116]
[1645874164029,1.57921945,38884.0,38883.0,2.94817116]
[1645874164236,1.57921945,38884.0,38883.0,2.56196216]
[1645874164431,1.60480945,38884.0,38883.0,2.56196216]
[1645874164629,1.60680945,38884.0,38883.0,2.56196216]
[1645874164831,1.60680945,38884.0,38883.0,2.17574816]
[1645874165429,1.60680945,38884.0,38883.0,1.78952716]
[1645874165831,1.60680945,38884.0,38883.0,1.49878216]
[1645874166032,1.60480945,38884.0,38883.0,1.02332149]
[1645874166334,1.61113739,38884.0,38883.0,0.49690525]
[1645874166588,1.61113739,38884.0,38868.0,0.001]
[1645874166589,0.089966,38879.0,38866.0,0.2341]
[1645874166798,0.089966,38879.0,38866.0,0.001]
[1645874166799,0.2499,38869.0,38866.0,0.001]
[1645874166989,0.2499,38869.0,38865.0,0.00104741]
[1645874167191,0.2999,38869.0,38865.0,0.00104741]
[1645874167389,0.3499,38869.0,38865.0,0.00104741]
[1645874167588,0.17212,38869.0,38865.0,0.00104741]
[1645874167789,0.2999,38866.0,38865.0,0.00104741]
[1645874168090,0.3499,38866.0,38865.0,0.00104741]
[1645874168291,0.6499,38866.0,38865.0,0.00104741]
[1645874168495,0.7013,38866.0,38865.0,0.00104741]
[1645874168692,1.2,38865.0,38864.0,0.00012313]
[1645874168896,1.444616,38865.0,38864.0,0.00012313]
[1645874169097,1.444616,38865.0,38858.0,0.0004926]
[1645874169098,0.95,38860.0,38858.0,0.0004926]
[1645874169295,1.265812,38859.0,38849.0,0.00907949]
[1645874169493,0.1536,38857.0,38849.0,0.00907949]
[1645874169692,0.17699,38856.0,38849.0,0.00907949]
[1645874169892,0.0514,38855.0,38849.0,0.00907949]
[1645874170093,0.0514,38855.0,38854.0,0.20324848]
[1645874170359,0.525,38865.0,38857.0,0.2]
[1645874170560,0.7424,38872.0,38849.0,0.12306839]
[1645874170561,0.5,38864.0,38849.0,0.12306839]
[1645874170757,0.002,38860.0,38858.0,0.05324848]
[1645874170958,0.002,38860.0,38859.0,0.3]
[1645874171355,0.002,38860.0,38857.0,0.377593]
[1645874171558,0.002,38860.0,38859.0,0.67362652]
[1645874171763,0.0999,38874.0,38859.0,1.14921652]
[1645874171965,0.0999,38874.0,38868.0,0.377593]
[1645874172157,0.0999,38874.0,38872.0,0.377593]
[1645874172357,0.0999,38874.0,38872.0,0.403183]
[1645874172556,0.0999,38874.0,38872.0,0.02559]
[1645874172758,0.0999,38874.0,38868.0,0.08083848]
[1645874172957,0.0999,38874.0,38868.0,0.02759]
[1645874173957,0.0999,38874.0,38868.0,0.02559]
[1645874174178,0.0999,38874.0,38867.0,0.19022895]
[1645874174376,0.09979535,38874.0,38866.0,0.05324848]
[1645874174579,0.10079535,38874.0,38866.0,0.05324848]
[1645874175378,0.10079535,38874.0,38863.0,0.002]
[1645874175379,0.05,38873.0,38863.0,0.002]
[1645874175677,0.04675152,38868.0,38863.0,0.002]
[1645874175875,0.09815152,38867.0,38857.0,0.05]
[1645874176076,0.22315152,38867.0,38856.0,0.00027857]
[1645874176275,0.5499,38866.0,38856.0,0.00027857]
[1645874176476,0.2999,38866.0,38856.0,0.00027857]
[1645874176676,0.064387,38863.0,38856.0,0.00027857]
[1645874177083,0.064387,38863.0,38851.0,0.20988633]
[1645874177276,0.064387,38863.0,38849.0,0.00907949]
[1645874177929,0.3,38862.0,38849.0,0.00907949]
[1645874178130,0.3,38862.0,38849.0,0.00407949]
[1645874178131,0.0644,38859.0,38849.0,0.00407949]
[1645874178528,0.0644,38859.0,38854.0,0.00028139]
[1645874178529,0.2499,38857.0,38854.0,0.00028139]
[1645874178729,0.2999,38857.0,38854.0,0.00028139]
[1645874178926,0.2749,38857.0,38854.0,0.00028139]
[1645874179328,0.025,38857.0,38854.0,0.00028139]
[1645874179527,0.04675152,38858.0,38849.0,0.00407949]
[1645874179732,0.064403,38855.0,38849.0,0.00407949]
[1645874179929,0.064403,38855.0,38854.0,0.00028139]
[1645874180131,0.415803,38855.0,38854.0,0.00028139]
[1645874180431,0.115803,38855.0,38854.0,0.00028139]
[1645874180631,0.06169,38855.0,38854.0,0.00028139]
[1645874180830,0.0514,38855.0,38849.0,0.00407949]
[1645874181231,0.0514,38855.0,38853.0,0.0002672]
[1645874181582,0.0514,38855.0,38853.0,0.21006047]
[1645874181983,0.0514,38855.0,38853.0,0.20979327]
[1645874182387,0.064391,38858.0,38853.0,0.20979327]
[1645874182783,0.001,38855.0,38853.0,0.20979327]
[1645874183883,0.064391,38858.0,38853.0,0.20979327]
[1645874184283,0.00145236,38855.0,38853.0,0.20979327]
[1645874184484,0.00145236,38855.0,38849.0,0.00407949]
[1645874184682,0.00145236,38855.0,38854.0,0.0002555]
[1645874185748,0.00145236,38855.0,38849.0,0.23559794]
[1645874186150,0.128385,38855.0,38854.0,0.05324848]
[1645874186450,0.000156,38879.0,38858.0,0.378946]
[1645874186648,0.000156,38879.0,38855.0,1.2]
[1645874186649,0.000156,38879.0,38865.0,0.05324848]
[1645874186848,0.000156,38879.0,38866.0,0.32559]
[1645874187047,0.3601,38881.0,38869.0,0.23588713]
[1645874187248,0.00015684,38879.0,38870.0,0.3]
[1645874188050,0.01027,38884.0,38873.0,0.02559]
[1645874188249,0.1,38885.0,38879.0,0.22110839]
[1645874188451,0.1,38885.0,38873.0,0.32559]
[1645874188651,0.1,38885.0,38873.0,0.3]
[1645874188851,0.1,38885.0,38873.0,0.002]
[1645874189093,0.04675152,38888.0,38873.0,0.002]
[1645874189485,0.17545352,38888.0,38874.0,0.22992659]
[1645874189788,0.04675152,38879.0,38873.0,0.002]
[1645874189984,0.0002766,38881.0,38868.0,0.3]
[1645874190191,0.0002766,38881.0,38865.0,0.01027]
[1645874190192,0.064365,38879.0,38865.0,0.048884]
[1645874190386,0.064365,38879.0,38866.0,0.3]
[1645874190587,0.064365,38879.0,38872.0,0.17541076]
[1645874190787,0.05,38880.0,38872.0,0.17541076]
[1645874190988,0.00027997,38879.0,38872.0,0.17541076]
[1645874191187,0.06463897,38879.0,38868.0,0.00015634]
[1645874191687,0.064359,38879.0,38868.0,0.00015634]
[1645874191988,0.06463897,38879.0,38868.0,0.00015634]
[1645874192188,0.06463897,38879.0,38869.0,0.22823214]
[1645874192388,0.06463897,38879.0,38870.0,0.3]
[1645874192588,0.06463897,38879.0,38875.0,0.1883573]
[1645874192589,0.00027997,38879.0,38875.0,0.1883573]
[1645874192831,0.064354,38882.0,38875.0,0.1883573]
[1645874193230,0.00027998,38879.0,38868.0,0.00115634]
[1645874194030,0.1,38881.0,38868.0,0.00015634]
[1645874194229,0.05,38880.0,38873.0,0.17275099]
[1645874194429,0.00027562,38879.0,38873.0,0.17275099]
[1645874194831,0.00109869,38879.0,38873.0,0.17275099]
[1645874195337,0.00082307,38879.0,38873.0,0.17275099]
[1645874195731,0.0008287,38879.0,38874.0,0.4688726]
[1645874195931,0.0008287,38879.0,38877.0,0.05324848]
[1645874196132,0.0008287,38879.0,38878.0,0.404536]
[1645874196578,0.00055307,38879.0,38878.0,0.404536]
[1645874196777,0.00055307,38879.0,38878.0,0.407536]
[1645874196977,0.00055307,38879.0,38878.0,0.02859]
[1645874197179,0.00055307,38879.0,38878.0,0.003]
[1645874197980,0.00055307,38879.0,38877.0,0.09184648]
[1645874198379,0.00055307,38879.0,38877.0,0.11743648]
[1645874198778,0.00055307,38879.0,38877.0,0.12043648]
[1645874199379,0.09793077,38890.0,38885.0,0.20964011]
[1645874200738,0.09793077,38890.0,38880.0,0.078198]
[1645874200739,0.09893077,38890.0,38880.0,0.078198]
[1645874201346,0.04675152,38881.0,38880.0,0.001]
[1645874201541,0.03586,38888.0,38880.0,0.001]
[1645874201738,0.04675152,38886.0,38880.0,0.001]
[1645874201937,0.06167,38885.0,38878.0,0.00015812]
[1645874202138,0.04675152,38879.0,38878.0,0.00015812]
[1645874202338,0.06167,38885.0,38878.0,0.00015812]
[1645874202739,0.001,38884.0,38878.0,0.00015812]
[1645874202939,0.00025716,38882.0,38878.0,0.00015812]
[1645874203739,0.151,38884.0,38878.0,0.00015812]
[1645874203939,0.00025716,38882.0,38878.0,0.00015812]
[1645874204185,0.07259868,38882.0,38878.0,0.00015812]
[1645874204386,0.07234152,38879.0,38878.0,0.00015812]
[1645874205386,0.04675152,38879.0,38878.0,0.00015812]
[1645874205585,0.04675152,38879.0,38877.0,7.892e-05]
[1645874205789,0.09675152,38879.0,38877.0,7.892e-05]
[1645874205988,0.2499,38878.0,38877.0,7.892e-05]
[1645874206185,0.39675152,38879.0,38877.0,7.892e-05]
[1645874206386,0.46111752,38879.0,38877.0,7.892e-05]
[1645874206585,0.51111752,38879.0,38877.0,7.892e-05]
[1645874206785,0.53770752,38879.0,38877.0,7.892e-05]
[1645874206986,0.53770752,38879.0,38877.0,8.92e-06]
[1645874206987,0.01027,38878.0,38877.0,8.92e-06]
[1645874207186,0.33716,38878.0,38877.0,8.92e-06]
[1645874207386,0.32689,38878.0,38877.0,8.92e-06]
[1645874207835,0.0514,38878.0,38877.0,8.92e-06]
[1645874208033,0.06167,38878.0,38877.0,8.92e-06]
[1645874208335,0.16167,38878.0,38877.0,8.92e-06]
[1645874208731,0.15917383,38878.0,38877.0,8.92e-06]
[1645874209933,0.14790383,38878.0,38877.0,8.92e-06]
[1645874210533,0.14790383,38878.0,38877.0,8.181e-05]
[1645874210735,0.14890383,38878.0,38877.0,8.181e-05]
[1645874211594,0.101,38878.0,38877.0,8.181e-05]
[1645874211794,0.301,38878.0,38877.0,8.181e-05]
[1645874212595,0.3,38878.0,38877.0,8.181e-05]
[1645874214200,0.2,38878.0,38877.0,8.181e-05]
[1645874215101,0.0978,38885.0,38878.0,1.578946]
[1645874215353,0.0978,38885.0,38879.0,0.678946]
[1645874215550,0.0978,38885.0,38881.0,0.50757472]
[1645874215750,0.0978,38885.0,38883.0,0.378946]
[1645874215949,0.0978,38885.0,38884.0,1.513446]
[1645874216154,0.0001,38885.0,38884.0,1.56669448]
[1645874216950,0.015,38898.0,38887.0,0.80869]
[1645874217151,0.015,38898.0,38889.0,0.02559]
[1645874217450,0.015,38898.0,38891.0,0.02559]
[1645874217649,0.015,38898.0,38892.0,0.404536]
[1645874217849,0.015,38898.0,38893.0,0.3]
[1645874218050,0.015,38898.0,38894.0,0.2317111]
[1645874218250,0.015,38898.0,38895.0,0.038588]
[1645874219696,0.015,38898.0,38895.0,0.338588]
[1645874220495,0.015,38898.0,38895.0,0.038588]
[1645874220694,0.015,38898.0,38894.0,0.2317111]
[1645874220896,0.015,38898.0,38890.0,0.004]
[1645874221398,0.015,38898.0,38890.0,0.02959]
[1645874221596,0.015,38898.0,38890.0,0.004]
[1645874221795,0.015,38898.0,38893.0,0.18632236]
[1645874222197,0.015,38898.0,38889.0,0.377174]
[1645874222397,0.015,38898.0,38890.0,0.3]
[1645874222598,0.015,38898.0,38889.0,0.377174]
[1645874222834,0.02171149,38901.0,38890.0,1.2]
[1645874223035,0.02171149,38901.0,38893.0,0.038589]
[1645874223236,0.01027,38905.0,38894.0,0.50042599]
[1645874223638,0.3476,38906.0,38894.0,0.50042599]
[1645874224538,0.3476,38906.0,38905.0,0.18575795]
[1645874224738,0.02171149,38907.0,38905.0,0.18575795]
[1645874228088,0.0999,38908.0,38905.0,0.18575795]
[1645874228486,0.02171149,38908.0,38905.0,0.18575795]
[1645874228891,0.0999,38912.0,38905.0,0.18575795]
[1645874229487,0.02171149,38911.0,38905.0,0.18575795]
[1645874229887,0.0999,38912.0,38905.0,0.18575795]
[1645874229888,0.02171149,38909.0,38905.0,0.18575795]
[1645874230332,0.00029788,38910.0,38905.0,0.18575795]
[1645874230537,0.00029788,38910.0,38906.0,8.655e-05]
[1645874230833,0.0999,38912.0,38906.0,8.655e-05]
[1645874231034,0.02171149,38909.0,38906.0,8.655e-05]
[1645874231234,0.00029788,38910.0,38906.0,8.655e-05]
[1645874232132,0.0999,38912.0,38906.0,8.655e-05]
[1645874232333,0.02200937,38910.0,38906.0,8.655e-05]
[1645874232532,0.00029788,38910.0,38906.0,8.655e-05]
[1645874233335,0.1009,38912.0,38906.0,8.655e-05]
[1645874233535,0.00029788,38910.0,38906.0,8.655e-05]
[1645874233735,0.00029788,38910.0,38907.0,0.378946]
[1645874233939,0.00029788,38910.0,38906.0,8.655e-05]
[1645874234186,0.00029788,38910.0,38906.0,0.30008655]
[1645874234385,0.0999,38912.0,38906.0,0.30008655]
[1645874234785,0.00029788,38910.0,38906.0,0.30008655]
[1645874235686,0.0999,38912.0,38906.0,0.3]
[1645874235986,0.00029788,38910.0,38906.0,0.3]
[1645874236786,0.02171149,38915.0,38906.0,0.303]
[1645874236987,0.02171149,38915.0,38912.0,0.21598062]
[1645874238233,0.02200936,38915.0,38912.0,0.21598062]
[1645874238833,0.02500936,38915.0,38912.0,0.21598062]
[1645874239240,0.02471149,38915.0,38912.0,0.21598062]
[1645874239435,0.02500936,38915.0,38912.0,0.21598062]
[1645874240036,0.02200936,38915.0,38912.0,0.21598062]
[1645874240238,0.00029787,38915.0,38912.0,0.25455162]
[1645874240436,0.02171149,38915.0,38912.0,0.25455162]
[1645874240837,0.00029787,38915.0,38912.0,0.25455162]
[1645874241038,0.02200936,38915.0,38912.0,0.25455162]
[1645874241685,0.02171149,38915.0,38912.0,0.038571]
[1645874241893,0.02171149,38915.0,38908.0,0.038574]
[1645874241894,0.02200936,38915.0,38908.0,0.038574]
[1645874242288,0.00029787,38915.0,38908.0,0.038574]
[1645874242594,0.02200936,38915.0,38908.0,0.038574]
[1645874242787,0.02171149,38915.0,38912.0,0.23065507]
[1645874243187,0.00029787,38913.0,38912.0,0.23065507]
[1645874243988,0.02171149,38917.0,38912.0,0.23065507]
[1645874244393,0.00029787,38914.0,38912.0,0.23065507]
[1645874244988,0.00029787,38914.0,38908.0,0.038574]
[1645874245189,0.02171149,38915.0,38908.0,0.038574]
[1645874245437,0.00029787,38915.0,38908.0,0.038574]
[1645874245637,0.00029787,38915.0,38909.0,8.623e-05]
[1645874246038,0.00029787,38915.0,38909.0,0.169913]
[1645874246440,0.3,38920.0,38909.0,0.169913]
[1645874246638,0.00029787,38914.0,38909.0,0.169913]
[1645874247639,0.02171149,38915.0,38909.0,0.169913]
[1645874247839,0.00017785,38913.0,38909.0,0.169913]
[1645874248840,0.001,38913.0,38909.0,0.169913]
[1645874249087,0.0012862,38913.0,38909.0,0.169913]
[1645874250089,0.02171149,38918.0,38909.0,0.169913]
[1645874250289,0.0002862,38913.0,38909.0,0.169913]
[1645874250491,0.0002862,38913.0,38909.0,0.16982677]
[1645874251292,0.02171149,38918.0,38909.0,0.16982677]
[1645874251592,0.0002862,38913.0,38909.0,0.16982677]
[1645874252394,0.02171149,38918.0,38909.0,0.16982677]
[1645874252835,0.0002862,38913.0,38910.0,0.74745283]
[1645874253739,0.01026,38921.0,38910.0,0.74745283]
[1645874253740,0.01026,38921.0,38911.0,1.45835642]
[1645874253937,0.00027539,38913.0,38911.0,1.48394642]
[1645874254137,0.00027539,38913.0,38911.0,1.187636]
[1645874254537,0.00027539,38913.0,38911.0,1.4835237]
[1645874254740,0.00027539,38913.0,38911.0,1.1045777]
[1645874255036,0.02171149,38924.0,38915.0,0.032138]
[1645874255237,0.49394468,38927.0,38916.0,0.19742547]
[1645874255439,0.02171149,38924.0,38916.0,0.19742547]
[1645874255637,0.14284468,38926.0,38916.0,0.19742547]
[1645874255638,0.3,38926.0,38916.0,0.19742547]
[1645874255838,0.02171149,38924.0,38916.0,0.19742547]
[1645874256240,0.00027536,38923.0,38916.0,0.19742547]
[1645874257297,0.3511,38927.0,38916.0,0.19742547]
[1645874257298,0.03197149,38926.0,38916.0,0.19742547]
[1645874257494,0.01026,38926.0,38916.0,0.19742547]
[1645874257694,0.0002763,38921.0,38916.0,0.49742547]
[1645874257894,0.0002763,38921.0,38916.0,0.19742547]
[1645874258293,0.0002763,38921.0,38916.0,0.49742547]
[1645874258493,0.0002763,38921.0,38916.0,0.19742547]
[1645874258697,0.0999,38928.0,38917.0,1.487636]
[1645874258896,0.0002763,38920.0,38919.0,0.815234]
[1645874259197,0.0002763,38920.0,38919.0,0.41108]
[1645874259394,0.0002763,38920.0,38919.0,0.032134]
[1645874259798,0.001,38926.0,38919.0,0.41108]
[1645874259994,0.00015578,38921.0,38919.0,0.032134]
[1645874260840,0.00015578,38921.0,38917.0,0.30008551]
[1645874261040,0.0999,38928.0,38917.0,0.30008551]
[1645874261241,0.00025531,38922.0,38917.0,0.29998004]
[1645874261441,0.00025531,38922.0,38917.0,0.3]
[1645874262140,0.0999,38928.0,38916.0,0.064271]
[1645874262345,0.0999,38928.0,38917.0,0.3]
[1645874262542,0.0219668,38921.0,38911.0,0.118]
[1645874262741,0.0219668,38921.0,38910.0,0.74745283]
[1645874262941,0.0219668,38921.0,38911.0,0.003]
[1645874263141,0.0219668,38921.0,38911.0,0.303]
[1645874263344,0.02171149,38916.0,38911.0,0.003]
[1645874263741,0.05165532,38918.0,38911.0,0.003]
[1645874263944,0.00025532,38918.0,38911.0,0.303]
[1645874264193,0.00025532,38918.0,38911.0,0.3]
[1645874264590,0.14011149,38924.0,38915.0,0.20166439]
[1645874264591,0.1184,38924.0,38915.0,0.20166439]
[1645874264791,0.0999,38922.0,38916.0,0.3]
[1645874264994,0.0999,38922.0,38915.0,0.20166439]
[1645874264995,0.00025746,38916.0,38915.0,0.20166439]
[1645874265993,0.0999,38922.0,38911.0,0.302]
[1645874266191,0.00025746,38917.0,38911.0,0.3]
[1645874266592,0.00025746,38917.0,38915.0,0.032139]
[1645874266992,0.0999,38922.0,38915.0,0.032139]
[1645874267392,0.00025746,38918.0,38915.0,0.032139]
[1645874267838,0.00025746,38918.0,38913.0,0.332141]
[1645874268338,0.0999,38920.0,38913.0,0.3]
[1645874268537,0.00025725,38917.0,38913.0,0.3]
[1645874269437,0.0999,38920.0,38913.0,0.3]
[1645874269636,0.00025725,38917.0,38913.0,0.3]
[1645874269837,0.00025725,38917.0,38912.0,0.21065532]
[1645874270243,0.00025725,38917.0,38913.0,0.3]
[1645874270638,0.0999,38920.0,38912.0,0.21065532]
[1645874270837,0.00025725,38917.0,38913.0,0.3]
[1645874271037,0.00025725,38917.0,38912.0,0.21065532]
[1645874271238,0.00025725,38917.0,38913.0,0.3]
[1645874271438,0.00025725,38917.0,38912.0,0.21065532]
[1645874271888,0.0999,38920.0,38912.0,0.24279732]
[1645874272089,0.00025727,38916.0,38912.0,0.24279732]
[1645874273092,0.0999,38920.0,38912.0,0.24279732]
[1645874273293,0.00025727,38916.0,38912.0,0.24279732]
[1645874273893,0.00025727,38916.0,38913.0,0.3]
[1645874274393,0.0999,38920.0,38918.0,0.18046931]
[1645874274793,0.0999,38920.0,38913.0,0.302]
[1645874275634,0.00025726,38918.0,38913.0,0.302]
[1645874275832,0.00025726,38918.0,38913.0,0.48984354]
[1645874276035,0.00025726,38918.0,38913.0,0.48784354]
[1645874276733,0.0999,38920.0,38913.0,0.48784354]
[1645874276934,0.00025726,38917.0,38913.0,0.48784354]
[1645874277938,0.0999,38920.0,38913.0,0.48784354]
[1645874278133,0.00025727,38917.0,38913.0,0.48784354]
[1645874278937,0.00025727,38917.0,38913.0,0.49184354]
[1645874279185,0.0999,38920.0,38913.0,0.49184354]
[1645874279387,0.00025727,38917.0,38913.0,0.49184354]
[1645874280089,0.00025727,38917.0,38913.0,0.48784354]
[1645874280290,0.0999,38920.0,38913.0,0.48784354]
[1645874280492,0.00025727,38917.0,38913.0,0.48784354]
[1645874280888,0.00025727,38917.0,38913.0,0.19184354]
[1645874281087,0.00025727,38917.0,38913.0,0.49184354]
[1645874281487,0.0999,38920.0,38913.0,0.49184354]
[1645874281690,0.00025727,38917.0,38913.0,0.49184354]
[1645874282089,0.00025727,38917.0,38913.0,0.18784354]
[1645874282591,0.0999,38920.0,38913.0,0.48784354]
[1645874282834,0.0999,38920.0,38913.0,0.18784354]